bitfinex-derivatives/quotes_BTCF0:USTF0_20250416
["timestamp","ask_amount","ask_price","bid_price","bid_amount"]
[1744815679854,0.0589941,84761.0,84760.0,0.1179896]
[1744815680063,0.0589941,84761.0,84760.0,0.2979896]
[1744815681150,0.0599941,84761.0,84760.0,0.3079896]
[1744815681758,0.0599941,84761.0,84760.0,0.3119896]
[1744815681954,0.001,84761.0,84760.0,0.3119896]
[1744815682662,0.1189882,84761.0,84760.0,0.3119896]
[1744815683363,0.00017622,84768.0,84767.0,0.1179798]
[1744815683565,0.00017622,84768.0,84767.0,0.6487798]
[1744815684864,0.00017622,84768.0,84767.0,0.6557798]
[1744815685167,0.11815462,84768.0,84767.0,0.2979798]
[1744815686557,0.11815462,84768.0,84767.0,0.3504798]
[1744815687065,0.00017622,84768.0,84767.0,0.3504798]
[1744815687267,0.00017622,84768.0,84767.0,0.4040798]
[1744815690373,0.00017622,84768.0,84767.0,0.7648798]
[1744815690873,0.00025622,84768.0,84767.0,0.7648798]
[1744815691472,0.00025622,84768.0,84767.0,0.7618798]
[1744815691675,0.00025622,84768.0,84767.0,0.7648798]
[1744815691873,0.00025622,84768.0,84767.0,0.7658798]
[1744815693266,0.00025622,84768.0,84767.0,0.7578798]
[1744815693467,0.00025622,84768.0,84767.0,0.7658798]
[1744815693877,0.00025622,84768.0,84767.0,0.7578798]
[1744815694073,0.00025622,84768.0,84767.0,0.7638798]
[1744815694372,0.11823462,84768.0,84767.0,0.7638798]
[1744815694766,0.11823462,84768.0,84767.0,0.7618798]
[1744815694967,0.11823462,84768.0,84767.0,0.2315]
[1744815695174,0.21863462,84768.0,84767.0,0.179]
[1744815695973,0.1179868,84762.0,84761.0,0.0519]
[1744815696172,0.4787868,84762.0,84761.0,0.0519]
[1744815696771,0.6328868,84762.0,84761.0,0.0519]
[1744815697365,0.1180007,84752.0,84751.0,0.17816201]
[1744815697771,0.1180007,84752.0,84751.0,0.00017694]
[1744815697978,0.1180007,84752.0,84751.0,0.22397694]
[1744815698270,0.5828007,84752.0,84751.0,0.00017694]
[1744815699071,0.118016,84741.0,84740.0,0.0538]
[1744815699274,0.1180286,84732.0,84731.0,0.05]
[1744815699472,0.11803,84731.0,84730.0,0.17798507]
[1744815699668,0.17173,84731.0,84730.0,0.17798507]
[1744815699871,0.17173,84731.0,84730.0,0.29601637]
[1744815700071,0.1180253,84735.0,84734.0,0.0590122]
[1744815700270,0.1180253,84735.0,84734.0,0.3818352]
[1744815700471,0.1181053,84735.0,84734.0,0.3818352]
[1744815700671,8e-05,84735.0,84734.0,0.4317352]
[1744815700871,0.1180244,84735.0,84734.0,0.4863352]
[1744815701172,0.1181044,84735.0,84734.0,0.4863352]
[1744815701373,0.1181044,84735.0,84734.0,0.3683122]
[1744815701577,0.1181044,84735.0,84734.0,0.3723122]
[1744815702982,0.1181044,84735.0,84734.0,0.3793122]
[1744815703278,0.1181044,84735.0,84734.0,0.3993122]
[1744815703672,0.1181044,84735.0,84734.0,0.2293122]
[1744815703872,0.1181044,84735.0,84734.0,0.1703]
[1744815704074,0.1181044,84735.0,84734.0,0.3213]
[1744815704381,0.1181044,84735.0,84734.0,0.3223]
[1744815704679,0.1181044,84735.0,84734.0,0.1723]
[1744815705084,0.1679044,84735.0,84734.0,0.1723]
[1744815705380,0.1679044,84735.0,84734.0,0.0629]
[1744815705581,0.2197044,84735.0,84734.0,0.0629]
[1744815705782,0.2709044,84735.0,84734.0,0.0629]
[1744815706172,0.2709044,84735.0,84734.0,0.1809258]
[1744815706480,0.2709044,84735.0,84734.0,0.0629]
[1744815707078,0.1180397,84724.0,84723.0,0.1704411]
[1744815707377,0.1180397,84724.0,84723.0,0.3404411]
[1744815708180,0.1180397,84724.0,84723.0,0.3494411]
[1744815708775,0.1180397,84724.0,84723.0,0.24032419]
[1744815708979,0.1180397,84724.0,84723.0,0.179]
[1744815709179,0.4798397,84724.0,84723.0,0.197]
[1744815709675,0.5325397,84724.0,84723.0,0.197]
[1744815710074,0.5315397,84724.0,84723.0,0.2970411]
[1744815710270,0.5315397,84724.0,84723.0,0.2940411]
[1744815710871,0.0590208,84723.0,84719.0,0.00507557]
[1744815711077,0.1180453,84720.0,84719.0,0.16507557]
[1744815711275,0.1180453,84720.0,84719.0,0.28312227]
[1744815711681,0.1611,84722.0,84721.0,0.1180439]
[1744815711870,0.0527,84722.0,84721.0,0.2680439]
[1744815712076,0.11814751,84725.0,84724.0,0.1180397]
[1744815712280,0.47894751,84725.0,84724.0,0.2880397]
[1744815712676,0.11814751,84725.0,84724.0,0.2880397]
[1744815713476,0.1180395,84725.0,84724.0,0.2880397]
[1744815713675,0.1181195,84725.0,84724.0,0.2920397]
[1744815713870,0.1181195,84725.0,84724.0,0.1220397]
[1744815714381,0.1717395,84725.0,84724.0,0.1240397]
[1744815714580,0.00017694,84739.0,84724.0,0.156]
[1744815714881,0.1180269,84734.0,84733.0,0.1180272]
[1744815715081,0.1180269,84734.0,84733.0,0.2980272]
[1744815715281,8e-05,84734.0,84733.0,0.2980272]
[1744815715486,0.00017694,84739.0,84738.0,0.1180202]
[1744815715686,0.00017694,84739.0,84738.0,0.6588202]
[1744815716189,0.00025694,84739.0,84738.0,0.6588202]
[1744815716373,0.11992534,84753.0,84739.0,0.0590092]
[1744815716575,0.11992534,84753.0,84752.0,0.1180007]
[1744815716772,0.11992534,84753.0,84752.0,0.2880007]
[1744815717180,0.12000534,84753.0,84752.0,0.2880007]
[1744815717376,0.11992534,84753.0,84752.0,0.3937007]
[1744815717580,0.12000534,84753.0,84752.0,0.3937007]
[1744815718580,0.12100534,84753.0,84752.0,0.3937007]
[1744815719480,0.12000534,84753.0,84752.0,0.3937007]
[1744815719676,0.12000534,84753.0,84752.0,0.4434007]
[1744815719880,0.11992534,84753.0,84752.0,0.4434007]
[1744815720082,0.12000534,84753.0,84752.0,0.4434007]
[1744815720279,8e-05,84753.0,84752.0,0.4434007]
[1744815721188,8e-05,84753.0,84752.0,0.4444007]
[1744815721487,8e-05,84753.0,84752.0,0.4464007]
[1744815722285,8e-05,84753.0,84752.0,0.4454007]
[1744815722688,8e-05,84753.0,84752.0,0.4444007]
[1744815722892,8e-05,84753.0,84752.0,0.4454007]
[1744815723888,0.0544,84767.0,84752.0,0.4454007]
[1744815723889,0.1179804,84767.0,84760.0,0.1179896]
[1744815724183,0.0589892,84768.0,84760.0,0.28689071]
[1744815724384,0.00010801,84762.0,84760.0,0.28689071]
[1744815724589,0.00010801,84762.0,84760.0,0.34009071]
[1744815724985,0.005,84774.0,84773.0,0.1179715]
[1744815725178,0.005,84774.0,84773.0,0.2679715]
[1744815725583,0.005,84774.0,84773.0,0.3716715]
[1744815725780,0.1229701,84774.0,84773.0,0.3716715]
[1744815726285,0.1229701,84774.0,84773.0,0.1675715]
[1744815726686,0.1735701,84774.0,84773.0,0.2675715]
[1744815726883,0.1229701,84774.0,84773.0,0.2675715]
[1744815727082,0.1230501,84774.0,84773.0,0.2675715]
[1744815727587,0.00608,84774.0,84773.0,0.2675715]
[1744815727987,0.006,84774.0,84773.0,0.2675715]
[1744815728179,0.005,84774.0,84773.0,0.2675715]
[1744815728378,0.00708,84774.0,84773.0,0.2675715]
[1744815729495,0.00508,84774.0,84773.0,0.2675715]
[1744815729880,0.005,84774.0,84773.0,0.2675715]
[1744815730282,0.00508,84774.0,84773.0,0.2675715]
[1744815730689,0.00508,84774.0,84773.0,0.2685715]
[1744815730894,0.1230501,84774.0,84773.0,0.3198715]
[1744815731500,0.00508,84774.0,84773.0,0.3198715]
[1744815731687,0.00508,84774.0,84773.0,0.3208715]
[1744815731885,0.00508,84774.0,84773.0,0.3198715]
[1744815732600,0.05948,84774.0,84773.0,0.3188715]
[1744815733297,0.05948,84774.0,84773.0,0.3198715]
[1744815733495,0.05948,84774.0,84773.0,0.3208715]
[1744815734996,0.05948,84774.0,84773.0,0.3198715]
[1744815735191,0.00508,84774.0,84773.0,0.3208715]
[1744815735395,0.005,84774.0,84773.0,0.3208715]
[1744815735596,0.00508,84774.0,84773.0,0.3208715]
[1744815736001,0.005,84774.0,84773.0,0.3208715]
[1744815736200,0.00508,84774.0,84773.0,0.3208715]
[1744815737501,0.00508,84774.0,84773.0,0.3198715]
[1744815737696,0.00508,84774.0,84773.0,0.3208715]
[1744815738196,0.00508,84774.0,84773.0,0.3705715]
[1744815738499,0.005,84774.0,84773.0,0.3705715]
[1744815738689,0.00508,84774.0,84773.0,0.3705715]
[1744815741503,0.005,84774.0,84773.0,0.3705715]
[1744815741698,0.00508,84774.0,84773.0,0.3705715]
[1744815743001,0.005,84774.0,84773.0,0.3705715]
[1744815743206,0.00508,84774.0,84773.0,0.3705715]
[1744815743409,0.00508,84774.0,84773.0,0.4624515]
[1744815748213,0.00028412,84782.0,84781.0,0.1179603]
[1744815748403,0.00028412,84782.0,84781.0,0.7587603]
[1744815748608,0.00028412,84782.0,84781.0,0.7027603]
[1744815748808,0.00028412,84782.0,84781.0,0.7527603]
[1744815749717,0.00128412,84782.0,84781.0,0.7527603]
[1744815750912,0.10278412,84782.0,84781.0,0.7527603]
[1744815751116,0.22074312,84782.0,84781.0,0.7527603]
[1744815752809,0.10278412,84782.0,84781.0,0.7527603]
[1744815753012,0.22074312,84782.0,84781.0,0.7527603]
[1744815753814,0.1179673,84776.0,84775.0,0.0589837]
[1744815754019,0.0589837,84776.0,84775.0,0.11]
[1744815754219,0.0589837,84776.0,84775.0,0.2279687]
[1744815754711,0.1662837,84776.0,84775.0,0.2279687]
[1744815754909,0.1662837,84776.0,84775.0,0.2773687]
[1744815755314,0.1662837,84776.0,84775.0,0.2783687]
[1744815755608,0.1662837,84776.0,84775.0,0.2793687]
[1744815756304,0.1662837,84776.0,84775.0,0.2783687]
[1744815756512,0.1662837,84776.0,84775.0,0.2773687]
[1744815756919,0.0589844,84775.0,84760.0,0.18688618]
[1744815757121,0.4787882,84761.0,84760.0,0.17798507]
[1744815757419,0.1179951,84756.0,84742.0,0.40807187]
[1744815757614,0.4787951,84756.0,84755.0,0.17707622]
[1744815757916,0.7287951,84756.0,84755.0,0.17707622]
[1744815758117,0.8348951,84756.0,84755.0,0.17707622]
[1744815758318,0.5848951,84756.0,84755.0,0.17707622]
[1744815758616,0.1180021,84751.0,84750.0,0.23768795]
[1744815758821,0.4788021,84751.0,84750.0,0.23768795]
[1744815759018,0.4788021,84751.0,84745.0,0.00507402]
[1744815759019,0.6698013,84751.0,84745.0,0.00507402]
[1744815759218,0.4788091,84746.0,84745.0,0.11507402]
[1744815759521,1.1412091,84746.0,84745.0,0.11507402]
[1744815759823,0.8912091,84746.0,84745.0,0.23308452]
[1744815760021,0.36088,84746.0,84745.0,0.28308452]
[1744815760320,0.4788891,84746.0,84745.0,0.33288452]
[1744815760519,0.4788091,84746.0,84745.0,0.33288452]
[1744815760723,0.4788891,84746.0,84745.0,0.33288452]
[1744815761931,0.4828891,84746.0,84745.0,0.33288452]
[1744815762626,0.4828891,84746.0,84745.0,0.28308452]
[1744815763026,0.8436891,84746.0,84745.0,0.11507402]
[1744815763736,0.1180272,84733.0,84729.0,0.1105161]
[1744815764028,0.4788272,84733.0,84732.0,0.2980286]
[1744815764436,0.4788272,84733.0,84732.0,0.18]
[1744815764637,0.4788272,84733.0,84732.0,0.2980286]
[1744815764835,0.5852272,84733.0,84732.0,0.18]
[1744815765231,0.5852272,84733.0,84732.0,0.2980286]
[1744815766238,0.5852272,84733.0,84732.0,0.2990286]
[1744815766536,0.5331272,84733.0,84732.0,0.2990286]
[1744815766839,0.3608,84733.0,84732.0,0.2990286]
[1744815767139,0.4789072,84733.0,84732.0,0.2990286]
[1744815767740,0.4789072,84733.0,84732.0,0.2980286]
[1744815767930,0.4789072,84733.0,84732.0,0.2990286]
[1744815768125,0.4789072,84733.0,84732.0,0.3010286]
[1744815768525,0.4789072,84733.0,84732.0,0.2990286]
[1744815768730,0.5307072,84733.0,84732.0,0.3000286]
[1744815769134,0.5307072,84733.0,84732.0,0.2990286]
[1744815770227,0.5856072,84733.0,84732.0,0.181]
[1744815770428,0.1180341,84728.0,84722.0,0.00177026]
[1744815770639,0.0590177,84728.0,84727.0,0.17]
[1744815770938,0.1180383,84725.0,84724.0,0.00017694]
[1744815771131,0.3608,84725.0,84705.0,0.09176]
[1744815771328,0.1180648,84706.0,84705.0,0.389826]
[1744815771637,0.4198272,84714.0,84705.0,0.389826]
[1744815771638,0.059029,84711.0,84710.0,0.1180578]
[1744815771940,0.059029,84711.0,84710.0,0.2680578]
[1744815772132,0.059029,84711.0,84710.0,0.15]
[1744815772327,0.059029,84711.0,84710.0,0.2680592]
[1744815772529,0.059029,84711.0,84710.0,0.15]
[1744815772735,0.061029,84711.0,84710.0,0.168]
[1744815772933,0.166129,84711.0,84710.0,0.2860592]
[1744815773842,0.166129,84711.0,84710.0,0.3420592]
[1744815774142,0.1734578,84711.0,84710.0,0.3510592]
[1744815774446,0.1735378,84711.0,84710.0,0.4027592]
[1744815774740,0.00308,84711.0,84710.0,0.4027592]
[1744815774935,0.003,84711.0,84710.0,0.4027592]
[1744815775131,0.00308,84711.0,84710.0,0.4027592]
[1744815775336,0.1211378,84711.0,84710.0,0.4027592]
[1744815775830,0.1211378,84711.0,84710.0,0.2847]
[1744815776229,0.2310378,84711.0,84710.0,0.2847]
[1744815776631,0.2310378,84711.0,84710.0,0.233]
[1744815776830,0.2310378,84711.0,84710.0,0.3510592]
[1744815777234,0.2310378,84711.0,84710.0,0.233]
[1744815777640,0.2310378,84711.0,84710.0,0.3510592]
[1744815778242,0.1766378,84711.0,84710.0,0.3510592]
[1744815778835,0.1766378,84711.0,84710.0,0.4041592]
[1744815779334,0.1211378,84711.0,84710.0,0.4041592]
[1744815780337,0.1211378,84711.0,84710.0,0.177]
[1744815780540,0.1724378,84711.0,84710.0,0.177]
[1744815780735,0.1211378,84711.0,84710.0,0.3473592]
[1744815780941,0.1210578,84711.0,84710.0,0.3993592]
[1744815781239,0.00308,84711.0,84710.0,0.3993592]
[1744815781441,0.003,84711.0,84710.0,0.3993592]
[1744815781641,0.1211378,84711.0,84710.0,0.3993592]
[1744815781842,0.00308,84711.0,84710.0,0.3993592]
[1744815782440,0.1211378,84711.0,84710.0,0.3993592]
[1744815782641,0.1210578,84711.0,84710.0,0.3993592]
[1744815782935,0.1211378,84711.0,84710.0,0.3993592]
[1744815783250,0.00308,84711.0,84710.0,0.3993592]
[1744815783447,0.1210578,84711.0,84710.0,0.3993592]
[1744815783744,0.1211378,84711.0,84710.0,0.2813]
[1744815783946,0.1211378,84711.0,84710.0,0.3993592]
[1744815784335,0.1211378,84711.0,84710.0,0.2813]
[1744815784535,0.1760378,84711.0,84710.0,0.2813]
[1744815784746,0.1760378,84711.0,84710.0,0.3993592]
[1744815784943,0.1211378,84711.0,84710.0,0.3993592]
[1744815785346,0.1211378,84711.0,84710.0,0.2813]
[1744815785552,0.1760378,84711.0,84710.0,0.2813]
[1744815787141,0.2273378,84711.0,84710.0,0.2813]
[1744815787650,0.1760378,84711.0,84710.0,0.2813]
[1744815787950,0.1750378,84711.0,84710.0,0.2753]
[1744815788142,0.2292378,84711.0,84710.0,0.2753]
[1744815788340,0.2292378,84711.0,84710.0,0.2233]
[1744815788550,0.2292378,84711.0,84693.0,0.24507713]
[1744815788551,0.1180815,84694.0,84693.0,0.24507713]
[1744815788741,0.4788815,84694.0,84693.0,0.18507713]
[1744815788941,0.4788815,84694.0,84693.0,0.30316003]
[1744815789140,0.5333815,84694.0,84693.0,0.30316003]
[1744815789440,0.3608,84694.0,84693.0,0.42207561]
[1744815789744,0.478862,84708.0,84707.0,0.1180634]
[1744815789946,0.478862,84708.0,84707.0,0.2780634]
[1744815790146,0.478942,84708.0,84707.0,0.2780634]
[1744815790343,0.478942,84708.0,84707.0,0.16]
[1744815790750,0.478942,84708.0,84707.0,0.2780634]
[1744815791150,0.36088,84708.0,84707.0,0.2790634]
[1744815791454,0.3608,84708.0,84707.0,0.2790634]
[1744815791635,0.3608,84708.0,84707.0,0.161]
[1744815791636,0.478862,84708.0,84707.0,0.161]
[1744815792039,0.586262,84708.0,84707.0,0.161]
[1744815792342,0.586342,84708.0,84707.0,0.161]
[1744815793055,0.589342,84708.0,84707.0,0.161]
[1744815793847,0.589342,84708.0,84707.0,0.001]
[1744815794149,0.1180759,84698.0,84697.0,0.0518]
[1744815794454,0.00308,84708.0,84707.0,0.1180634]
[1744815794651,0.00308,84708.0,84707.0,0.3080634]
[1744815795043,0.121062,84708.0,84707.0,0.2980634]
[1744815795244,0.00308,84708.0,84707.0,0.4044634]
[1744815795444,0.121062,84708.0,84707.0,0.4044634]
[1744815795643,0.00308,84708.0,84707.0,0.4044634]
[1744815796246,0.08985749,84713.0,84712.0,0.1180564]
[1744815796445,0.00605749,84713.0,84712.0,0.3698564]
[1744815796647,0.00613749,84713.0,84712.0,0.6198564]
[1744815797050,0.00605749,84713.0,84712.0,0.6198564]
[1744815797247,0.00605749,84713.0,84712.0,0.7262564]
[1744815797449,0.00605749,84713.0,84712.0,0.48804301]
[1744815797853,0.00613749,84713.0,84712.0,0.84884301]
[1744815798052,0.00605749,84713.0,84712.0,0.84884301]
[1744815798353,0.01013749,84713.0,84712.0,0.84984301]
[1744815798751,0.11992534,84719.0,84718.0,0.1180481]
[1744815798951,0.14950347,84726.0,84725.0,0.1180383]
[1744815799146,0.00014581,84731.0,84730.0,0.1180313]
[1744815799348,0.00053146,84744.0,84730.0,0.6808155]
[1744815799654,0.00053146,84744.0,84743.0,0.1180132]
[1744815799855,0.11999631,84746.0,84745.0,0.1180105]
[1744815800153,0.11999631,84746.0,84745.0,0.3798105]
[1744815800754,0.12007631,84746.0,84745.0,0.3798105]
[1744815800955,0.11999631,84746.0,84745.0,0.3798105]
[1744815801258,0.12007631,84746.0,84745.0,0.3798105]
[1744815801460,0.11999631,84746.0,84745.0,0.3798105]
[1744815801659,0.12007631,84746.0,84745.0,0.3798105]
[1744815801951,0.23808541,84746.0,84745.0,0.27257876]
[1744815802157,0.23808541,84746.0,84745.0,0.39058926]
[1744815802358,0.23808541,84746.0,84745.0,0.39158926]
[1744815802660,0.34158541,84746.0,84745.0,0.27357876]
[1744815802860,0.34158541,84746.0,84745.0,0.39158926]
[1744815803156,0.2215891,84746.0,84745.0,0.39158926]
[1744815804164,0.2215891,84746.0,84745.0,0.38958926]
[1744815804457,0.2255891,84746.0,84745.0,0.38958926]
[1744815804661,0.05678,84746.0,84745.0,0.38958926]
[1744815804863,0.1747891,84746.0,84745.0,0.38958926]
[1744815805165,0.00408,84746.0,84745.0,0.38958926]
[1744815805961,0.00408,84746.0,84745.0,0.49358926]
[1744815808057,0.004,84746.0,84745.0,0.49358926]
[1744815808353,0.00010801,84753.0,84751.0,0.1180021]
[1744815808661,0.00025705,84752.0,84751.0,0.2780021]
[1744815809263,0.00025705,84752.0,84751.0,0.3832021]
[1744815809661,1e-08,84752.0,84751.0,0.3832021]
[1744815809866,1e-08,84752.0,84751.0,0.3842021]
[1744815809867,0.00700001,84752.0,84751.0,0.3842021]
[1744815810668,0.00600001,84752.0,84751.0,0.3842021]
[1744815810964,0.00600001,84752.0,84751.0,0.3862021]
[1744815811163,0.006,84752.0,84751.0,0.3862021]
[1744815811363,0.00608,84752.0,84751.0,0.3862021]
[1744815811559,0.00017705,84760.0,84759.0,0.117991]
[1744815811761,0.00057058,84768.0,84765.0,0.1179826]
[1744815811959,0.00057058,84768.0,84765.0,0.39124303]
[1744815812164,0.0521,84772.0,84771.0,0.1179743]
[1744815812358,0.1700729,84772.0,84771.0,0.2879743]
[1744815812557,0.5308729,84772.0,84771.0,0.2879743]
[1744815812759,0.1700729,84772.0,84771.0,0.3796543]
[1744815812960,0.2244729,84772.0,84771.0,0.3796543]
[1744815813562,0.2304729,84772.0,84771.0,0.4350543]
[1744815813769,0.2304729,84772.0,84771.0,0.3433743]
[1744815814072,0.2324729,84772.0,84771.0,0.4350543]
[1744815814466,0.2325529,84772.0,84771.0,0.4350543]
[1744815815571,0.2324729,84772.0,84771.0,0.4350543]
[1744815815866,0.2324729,84772.0,84771.0,0.31708]
[1744815816171,0.2324729,84772.0,84771.0,0.3806543]
[1744815816172,0.2325529,84772.0,84771.0,0.3806543]
[1744815816571,0.2324729,84772.0,84771.0,0.3806543]
[1744815816871,0.2325529,84772.0,84771.0,0.4345543]
[1744815817771,0.2325529,84772.0,84771.0,0.3806543]
[1744815819266,0.2325529,84772.0,84771.0,0.171]
[1744815819466,0.1179798,84767.0,84766.0,0.09164]
[1744815819657,0.117984,84764.0,84757.0,0.0589963]
[1744815819861,0.117984,84764.0,84758.0,0.09164]
[1744815820161,0.117984,84764.0,84753.0,0.01150808]
[1744815820162,0.1770004,84753.0,84752.0,0.1770006]
[1744815820363,0.1180007,84752.0,84751.0,0.2096421]
[1744815820556,0.2760007,84752.0,84751.0,0.3096421]
[1744815820762,0.6368007,84752.0,84751.0,0.2180021]
[1744815821057,0.6368007,84752.0,84751.0,0.1]
[1744815821774,0.6368007,84752.0,84751.0,0.2180021]
[1744815822372,0.6408007,84752.0,84751.0,0.2180021]
[1744815822763,0.6368007,84752.0,84751.0,0.2200021]
[1744815822965,0.6398007,84752.0,84751.0,0.2200021]
[1744815823268,0.6398007,84752.0,84751.0,0.102]
[1744815823464,0.6408007,84752.0,84751.0,0.1]
[1744815824465,0.1180118,84744.0,84743.0,0.00017705]
[1744815824670,0.4788118,84744.0,84743.0,0.00017705]
[1744815824860,0.5809118,84744.0,84743.0,0.00017705]
[1744815825567,0.5809118,84744.0,84743.0,0.12017705]
[1744815826064,0.5819118,84744.0,84743.0,0.12117705]
[1744815826270,0.5819118,84744.0,84743.0,0.00117705]
[1744815826463,0.7139,84744.0,84726.0,0.00865599]
[1744815826656,0.4788355,84727.0,84726.0,0.2680369]
[1744815826960,0.4788355,84727.0,84726.0,0.15]
[1744815827157,0.4788355,84727.0,84726.0,0.2680369]
[1744815827567,0.5859355,84727.0,84726.0,0.2680369]
[1744815827761,0.5869355,84727.0,84726.0,0.2680369]
[1744815827964,0.4689,84727.0,84726.0,0.2680369]
[1744815828159,0.001,84727.0,84726.0,0.73992128]
[1744815828358,0.36097705,84735.0,84734.0,0.1180258]
[1744815828560,0.36097705,84735.0,84734.0,0.2780258]
[1744815828773,0.47900145,84735.0,84734.0,0.2780258]
[1744815828963,0.36097705,84735.0,84734.0,0.2780258]
[1744815829168,0.47900145,84735.0,84734.0,0.3833258]
[1744815830167,0.36597705,84735.0,84734.0,0.3833258]
[1744815830572,0.48400145,84735.0,84734.0,0.3833258]
[1744815830772,0.48600145,84735.0,84734.0,0.3833258]
[1744815831870,0.48100145,84735.0,84734.0,0.3833258]
[1744815832069,0.48500145,84735.0,84734.0,0.3833258]
[1744815832869,0.36697705,84735.0,84734.0,0.3833258]
[1744815833066,0.48500145,84735.0,84734.0,0.3833258]
[1744815833469,0.48500145,84735.0,84734.0,0.16]
[1744815833770,0.59090145,84735.0,84734.0,0.2780258]
[1744815834171,0.48500145,84735.0,84734.0,0.2780258]
[1744815834372,0.36697705,84735.0,84734.0,0.2780258]
[1744815834675,0.36705705,84735.0,84734.0,0.3816258]
[1744815834869,0.36697705,84735.0,84734.0,0.3816258]
[1744815835268,0.00617705,84735.0,84734.0,0.3816258]
[1744815835777,0.00625705,84735.0,84734.0,0.3816258]
[1744815835967,0.36697705,84735.0,84734.0,0.3816258]
[1744815836163,0.36705705,84735.0,84734.0,0.3816258]
[1744815836772,0.48508145,84735.0,84734.0,0.3816258]
[1744815837278,0.53768145,84735.0,84734.0,0.3311258]
[1744815837774,0.36705705,84735.0,84734.0,0.3845258]
[1744815837962,0.00617705,84735.0,84734.0,0.3845258]
[1744815838168,0.00625705,84735.0,84734.0,0.3845258]
[1744815838863,0.00617705,84735.0,84734.0,0.3845258]
[1744815839064,0.36705705,84735.0,84734.0,0.3845258]
[1744815841274,0.00625705,84735.0,84734.0,0.3845258]
[1744815841679,0.36099684,84760.0,84746.0,0.1180091]
[1744815841885,0.3608,84760.0,84759.0,0.117991]
[1744815842068,0.3608,84760.0,84759.0,0.287991]
[1744815842273,0.14984716,84767.0,84765.0,0.1769725]
[1744815842470,0.20883736,84767.0,84766.0,0.1097]
[1744815842670,0.20891736,84767.0,84766.0,0.1097]
[1744815842878,0.20891736,84767.0,84758.0,0.00017705]
[1744815842879,0.0589934,84762.0,84758.0,0.00017705]
[1744815843071,0.0589948,84760.0,84759.0,0.0545]
[1744815843276,0.4197948,84760.0,84759.0,0.1724905]
[1744815843679,0.4725948,84760.0,84759.0,0.1724905]
[1744815844677,0.4775948,84760.0,84759.0,0.1724905]
[1744815845082,0.4136,84760.0,84759.0,0.1724905]
[1744815845285,0.0590701,84767.0,84766.0,0.1179812]
[1744815845878,0.0589901,84767.0,84766.0,0.1179812]
[1744815846078,0.0590701,84767.0,84766.0,0.2276812]
[1744815846479,0.0610701,84767.0,84766.0,0.2276812]
[1744815846777,0.0620701,84767.0,84766.0,0.3876812]
[1744815846973,0.0620701,84767.0,84766.0,0.2276812]
[1744815847384,0.117991,84759.0,84755.0,0.09156]
[1744815847586,0.478791,84759.0,84755.0,0.09156]
[1744815847785,0.531891,84759.0,84755.0,0.2095559]
[1744815848082,0.531891,84759.0,84757.0,0.0589968]
[1744815848481,0.532891,84759.0,84757.0,0.0589968]
[1744815848681,0.532891,84759.0,84758.0,0.11816945]
[1744815848880,0.172171,84759.0,84758.0,0.37956945]
[1744815849075,0.119071,84759.0,84758.0,0.22956945]
[1744815849281,0.479871,84759.0,84758.0,0.22956945]
[1744815849481,0.479791,84759.0,84758.0,0.22956945]
[1744815849684,0.530691,84759.0,84758.0,0.11816945]
[1744815849885,0.530691,84759.0,84758.0,0.00017705]
[1744815850084,0.530691,84759.0,84758.0,0.11816945]
[1744815850485,0.530771,84759.0,84758.0,0.11816945]
[1744815851085,0.530771,84759.0,84758.0,0.00017705]
[1744815851288,0.1180105,84745.0,84735.0,0.09156]
[1744815851594,0.5378164,84745.0,84744.0,0.1180118]
[1744815852184,0.4707059,84745.0,84744.0,0.1180118]
[1744815852393,0.4788105,84745.0,84744.0,0.2780118]
[1744815852896,0.4788105,84745.0,84744.0,0.1250118]
[1744815853493,0.4788105,84745.0,84744.0,0.1220118]
[1744815855099,0.1180105,84745.0,84744.0,0.3020118]
[1744815855400,0.11817755,84753.0,84752.0,0.1180007]
[1744815855606,0.11817755,84753.0,84752.0,0.2680007]
[1744815856297,0.11817755,84753.0,84752.0,0.3766007]
[1744815856607,0.12117755,84753.0,84752.0,0.3766007]
[1744815856907,0.53647755,84753.0,84752.0,0.1086]
[1744815857108,0.118016,84742.0,84741.0,0.1180156]
[1744815857296,0.4788146,84742.0,84741.0,0.343616]
[1744815857496,0.4788146,84742.0,84741.0,0.323616]
[1744815857699,0.5892146,84742.0,84741.0,0.173616]
[1744815857905,0.5892146,84742.0,84741.0,0.0556]
[1744815858105,0.0590091,84740.0,84736.0,0.00017705]
[1744815858300,0.1180216,84737.0,84736.0,0.11819805]
[1744815858499,0.1180216,84737.0,84736.0,0.17119805]
[1744815858703,0.1180216,84737.0,84736.0,0.26119805]
[1744815859009,0.1180216,84737.0,84736.0,0.31499805]
[1744815859196,0.1180216,84737.0,84736.0,0.31599805]
[1744815859596,0.1180216,84737.0,84736.0,0.10117705]
[1744815859793,0.1180216,84737.0,84736.0,0.10017705]
[1744815860093,0.1180216,84737.0,84736.0,0.00317705]
[1744815860603,0.1180216,84737.0,84736.0,0.22020005]
[1744815860994,0.0508,84737.0,84736.0,0.22020005]
[1744815861201,0.1688216,84737.0,84736.0,0.22020005]
[1744815861400,0.1688216,84737.0,84736.0,0.32780005]
[1744815861597,0.1689016,84737.0,84736.0,0.32780005]
[1744815862000,0.1689016,84737.0,84736.0,0.32580005]
[1744815862001,0.00208,84737.0,84736.0,0.32580005]
[1744815862299,0.00308,84737.0,84736.0,0.32580005]
[1744815862509,0.003,84737.0,84736.0,0.32580005]
[1744815862804,0.00108,84737.0,84736.0,0.32580005]
[1744815863007,0.001,84737.0,84736.0,0.32580005]
[1744815863198,0.00108,84737.0,84736.0,0.32580005]
[1744815863396,0.00010801,84747.0,84746.0,0.1180091]
[1744815863702,0.11811571,84747.0,84746.0,0.2980091]
[1744815864095,0.1180077,84747.0,84746.0,0.2980091]
[1744815864298,0.4198031,84749.0,84746.0,0.2847]
[1744815864603,0.00010801,84763.0,84752.0,0.1180007]
[1744815864795,0.26783596,84761.0,84752.0,0.2780007]
[1744815865000,0.14984716,84761.0,84752.0,0.2780007]
[1744815865201,0.0546,84762.0,84752.0,0.53962864]
[1744815865202,1e-08,84753.0,84752.0,0.53962864]
[1744815865507,0.12001784,84759.0,84758.0,0.1179924]
[1744815865709,0.12001784,84759.0,84758.0,0.7202324]
[1744815866007,0.14984716,84765.0,84758.0,0.60224]
[1744815866205,0.17889308,84771.0,84770.0,0.1179756]
[1744815866396,0.29686738,84771.0,84770.0,0.2679756]
[1744815866598,0.29694738,84771.0,84770.0,0.2679756]
[1744815867408,0.29694738,84771.0,84770.0,0.3194756]
[1744815868809,0.29694738,84771.0,84770.0,0.2689756]
[1744815869015,0.65774738,84771.0,84770.0,0.151]
[1744815869200,0.0589919,84765.0,84762.0,0.0534]
[1744815869511,0.4787854,84763.0,84762.0,0.3803767]